bitfinex-derivatives/quotes_ETHF0:USTF0_20260203
["timestamp","ask_amount","ask_price","bid_price","bid_amount"]
[1770107901846,0.00303164,2328.2,2327.6,2.34240506]
[1770107902045,0.00303164,2328.2,2327.9,0.21496]
[1770107902246,2.36848028,2328.7,2328.1,0.21494]
[1770107902544,6.89739119,2328.7,2328.1,0.21494]
[1770107902740,4.52891091,2328.7,2328.1,0.21494]
[1770107902944,4.52891091,2328.7,2328.3,0.21492]
[1770107903146,2.36848028,2329.0,2328.5,0.2149]
[1770107903748,4.72180918,2328.9,2328.3,0.00325929]
[1770107903939,7.09028946,2328.9,2328.3,0.00325929]
[1770107904240,7.09499611,2328.9,2328.5,0.2149]
[1770107904837,7.09499611,2328.9,2327.7,2.34240506]
[1770107904838,2.36848028,2328.8,2327.7,2.34240506]
[1770107905036,2.36848028,2328.8,2327.9,0.21496]
[1770107905245,2.36848028,2328.6,2328.0,0.21495]
[1770107905544,0.00470665,2328.9,2328.1,2.55734506]
[1770107905545,4.66379787,2328.5,2328.1,2.55734506]
[1770107905746,4.50498073,2328.5,2328.2,2.55733506]
[1770107905942,11.38918693,2328.9,2328.5,2.55731506]
[1770107905943,0.00470665,2328.9,2328.5,2.55731506]
[1770107906237,5.37648028,2329.2,2328.5,2.55731506]
[1770107906443,5.37648028,2329.2,2328.5,0.21491]
[1770107907145,5.38005763,2329.2,2328.5,0.21491]
[1770107907742,2.56657195,2330.2,2329.4,2.34240506]
[1770107907946,2.36848028,2330.4,2329.7,0.2148]
[1770107908142,4.5817805,2330.1,2329.7,0.2148]
[1770107908337,4.94118605,2330.2,2330.0,2.34240506]
[1770107908542,2.36848028,2330.7,2329.9,0.21477]
[1770107908742,2.37183365,2330.7,2329.9,0.2181894]
[1770107908941,2.37183365,2330.7,2329.1,2.56218402]
[1770107908942,2.36848028,2330.5,2329.1,2.34240506]
[1770107909149,2.36848028,2330.5,2328.7,5.14140704]
[1770107909150,4.94118605,2330.6,2329.5,2.34240506]
[1770107909344,4.50608767,2330.4,2329.8,0.21479]
[1770107909544,2.36848028,2330.4,2329.8,0.21479]
[1770107909946,2.36848028,2330.2,2329.8,0.00482696]
[1770107910145,6.87456795,2330.3,2329.8,0.00482696]
[1770107910342,4.68478459,2330.4,2329.8,2.34723202]
[1770107910544,0.00335337,2330.7,2329.8,2.34723202]
[1770107910848,4.68478459,2330.6,2329.8,2.34723202]
[1770107912146,2.36848028,2330.5,2329.8,0.21960696]
[1770107912354,2.36848028,2330.5,2329.2,2.34240506]
[1770107912653,2.36848028,2330.3,2329.3,5.54572035]
[1770107912853,2.36848028,2330.3,2329.3,8.10295541]
[1770107913056,2.36848028,2330.3,2329.4,2.34240506]
[1770107913354,2.36848028,2330.3,2329.4,2.34628299]
[1770107913652,2.36848028,2330.3,2329.4,2.56110299]
[1770107913852,2.36848028,2330.6,2329.4,2.56110299]
[1770107914053,2.36848028,2330.6,2329.6,2.34240506]
[1770107914245,6.8738896,2330.6,2329.6,2.34240506]
[1770107914553,2.36848028,2330.5,2329.6,2.34240506]
[1770107914749,2.36848028,2330.5,2329.4,0.00387793]
[1770107914953,2.36848028,2329.7,2328.9,0.21487]
[1770107915158,2.36848028,2329.6,2328.6,2.34240506]
[1770107915353,2.36848028,2329.5,2328.6,2.34240506]
[1770107915548,2.36848028,2329.5,2328.5,0.2149]
[1770107915753,2.36848028,2329.5,2328.7,0.21489]
[1770107915754,4.65345325,2329.4,2328.7,0.21489]
[1770107916154,2.36848028,2329.5,2328.7,0.21489]
[1770107916450,6.90011054,2329.4,2328.7,0.21489]
[1770107916651,4.53163026,2329.4,2328.7,2.55729506]
[1770107916955,4.53163026,2329.6,2329.1,2.55725506]
[1770107917259,2.36848028,2330.1,2329.1,2.55725506]
[1770107917448,2.36848028,2330.1,2329.2,0.21484]
[1770107917757,2.36848028,2330.1,2329.2,2.34240506]
[1770107918858,2.36848028,2330.1,2329.3,8.01835802]
[1770107919062,2.36848028,2330.4,2329.5,0.21481]
[1770107919256,2.36848028,2330.4,2329.7,0.21479]
[1770107919453,7.2012847,2330.4,2329.7,0.21479]
[1770107920154,2.36848028,2330.3,2329.7,0.21479]
[1770107920353,2.36848028,2330.1,2328.6,2.55729506]
[1770107920863,2.36848028,2329.9,2328.6,2.55729506]
[1770107921154,2.36848028,2329.3,2328.0,2.55735506]
[1770107921360,2.36848028,2329.1,2328.0,0.21495]
[1770107921859,10.77531043,2329.2,2328.0,0.21495]
[1770107921860,2.36848028,2328.9,2328.0,0.21495]
[1770107922061,2.37222857,2328.9,2328.0,0.21916553]
[1770107922260,7.12273783,2328.8,2328.0,0.21916553]
[1770107924461,2.36848028,2328.7,2328.0,0.21916553]
[1770107924762,4.86366715,2328.6,2328.0,0.21916553]
[1770107925260,2.36848028,2328.7,2328.0,0.21916553]
[1770107925562,6.94925602,2328.6,2328.0,0.21916553]
[1770107926060,0.00374829,2328.9,2328.0,0.21916553]
[1770107926061,6.94925602,2328.8,2328.0,0.21916553]
[1770107926260,4.58077574,2328.5,2328.0,0.21916553]
[1770107926461,4.93455995,2328.7,2328.0,0.21916553]
[1770107926657,4.93455995,2328.7,2328.1,0.21494]
[1770107926863,2.36848028,2328.8,2328.1,0.21494]
[1770107927163,7.30304023,2328.7,2328.1,0.21494]
[1770107927462,2.36848028,2328.7,2328.1,0.21494]
[1770107927764,4.92081329,2328.6,2328.1,0.21494]
[1770107929465,2.36848028,2328.5,2328.1,0.21494]
[1770107929665,2.36848028,2328.5,2327.6,2.34240506]
[1770107930057,2.36848028,2328.5,2327.6,7.92112414]
[1770107930262,2.36848028,2328.5,2328.1,0.21494]
[1770107930561,2.36848028,2328.5,2328.1,0.00424827]
[1770107931166,2.36848028,2328.5,2328.1,0.21918827]
[1770107931763,2.45631748,2328.3,2327.6,0.21499]
[1770107932068,4.65122856,2328.2,2327.6,0.21499]
[1770107932262,2.45631748,2328.1,2327.1,0.21504]
[1770107932566,7.13621441,2328.0,2327.1,0.21504]
[1770107932768,2.45631748,2327.9,2327.1,0.21985337]
[1770107933864,2.45631748,2327.7,2326.7,2.41265952]
[1770107934065,2.45631748,2327.7,2326.5,3.22209]
[1770107934268,2.45631748,2327.5,2326.6,0.21508]
[1770107934769,4.7920958,2327.4,2326.6,0.21508]
[1770107934969,2.45631748,2327.3,2326.6,0.21977234]
[1770107935564,4.78081727,2327.2,2326.6,0.21977234]
[1770107935761,4.78612511,2327.2,2326.6,0.21977234]
[1770107935965,7.24244259,2327.2,2326.6,0.21977234]
[1770107936562,2.45631748,2327.1,2326.2,0.21511]
[1770107936971,2.37265507,2326.9,2325.8,2.41265952]
[1770107937169,2.37265507,2326.9,2326.2,0.21511]
[1770107937364,7.04364178,2326.8,2326.2,0.21511]
[1770107937569,7.04364178,2326.8,2326.2,0.21910446]
[1770107937772,2.33199572,2326.8,2326.2,0.21910446]
[1770107938169,2.33199572,2326.6,2326.2,0.21910446]
[1770107938467,4.69991484,2326.8,2325.8,2.41265952]
[1770107938766,4.69991484,2326.9,2326.2,0.21512]
[1770107939171,5.32469902,2327.0,2326.3,0.21511]
[1770107939372,4.61663634,2326.9,2326.4,0.2151]
[1770107939871,2.31669902,2326.8,2325.4,11.75765536]
[1770107940074,2.31669902,2326.8,2325.9,0.21514]
[1770107940270,4.61663634,2326.7,2325.9,0.21514]
[1770107940474,4.61663634,2326.7,2326.0,0.21514]
[1770107940975,4.61663634,2326.7,2326.0,0.21893164]
[1770107941474,6.83709674,2326.7,2326.0,0.21893164]
[1770107941675,2.2204604,2326.6,2326.0,0.21893164]
[1770107941876,2.2204604,2326.9,2326.0,0.21893164]
[1770107942069,4.83622944,2326.5,2326.0,2.63159116]
[1770107942275,2.2204604,2326.5,2326.0,0.21893164]
[1770107942471,2.2204604,2326.8,2326.2,0.21512]
[1770107942776,4.9537608,2326.7,2326.2,2.62777952]
[1770107943275,2.2204604,2327.1,2326.2,2.62777952]
[1770107943676,2.24920549,2326.9,2326.2,0.21512]
[1770107944073,9.55030784,2327.2,2326.2,0.21512]
[1770107944074,6.73270518,2326.8,2326.2,0.21512]
[1770107944479,2.24920549,2326.8,2326.2,0.21512]
[1770107944678,6.83599958,2326.7,2326.2,0.21512]
[1770107944979,4.58679409,2326.8,2326.2,0.21512]
[1770107945378,2.2430774,2326.8,2326.2,0.21512]
[1770107945574,2.0279574,2326.6,2326.0,0.00379164]
[1770107945882,2.02416576,2326.1,2324.8,2.41265952]
[1770107946178,3.14350446,2326.0,2324.7,0.21526]
[1770107946379,2.02416576,2325.9,2324.7,0.21526]
[1770107946779,2.02416576,2325.7,2324.7,0.21909826]
[1770107947278,2.02416576,2325.7,2324.5,2.41265952]
[1770107947279,1.92077739,2325.5,2324.2,2.41265952]
[1770107947678,2.32656742,2325.4,2324.4,2.41265952]
[1770107947877,1.70167913,2325.3,2324.3,5.71453034]
[1770107948077,1.70167913,2325.3,2324.2,2.62795952]
[1770107948273,1.70167913,2325.1,2324.2,0.2153]
[1770107948579,1.48335051,2324.9,2323.6,2.41265952]
[1770107948883,1.48335051,2324.9,2323.9,2.62798952]
[1770107949181,4.50794182,2324.8,2323.9,2.62798952]
[1770107949880,4.65971448,2324.9,2323.9,2.63276228]
[1770107950081,1.40585008,2324.9,2323.9,2.63276228]
[1770107950380,1.40585008,2324.8,2323.9,2.63276228]
[1770107950780,4.82843709,2324.7,2323.9,2.63276228]
[1770107951378,4.82843709,2324.7,2324.2,2.41265952]
[1770107951577,3.009,2325.0,2324.2,2.41265952]
[1770107951778,1.33962203,2325.2,2324.2,2.62795952]
[1770107951980,4.51466503,2324.9,2324.2,2.62795952]
[1770107952179,4.51466503,2325.1,2324.2,2.62795952]
[1770107952379,1.33962203,2325.2,2324.2,2.62795952]
[1770107952780,4.53243906,2325.1,2324.5,2.62793952]
[1770107952980,0.00449421,2325.3,2324.8,2.41265952]
[1770107953182,0.21509,2326.6,2324.9,2.41265952]
[1770107953183,3.18953834,2325.2,2324.9,2.41265952]
[1770107953383,7.53149048,2326.1,2324.9,2.41265952]
[1770107953584,4.70239354,2325.7,2324.9,2.41265952]
[1770107953779,6.175,2326.1,2325.0,2.41265952]
[1770107953975,4.70239354,2325.9,2325.3,2.62785952]
[1770107954184,0.00533887,2325.9,2325.3,2.41265952]
[1770107954378,0.00533887,2325.9,2325.5,0.21518]
[1770107954582,0.00533887,2325.9,2325.1,2.41265952]
[1770107955787,0.00533887,2325.9,2325.5,2.62783952]
[1770107956082,1.36602362,2326.5,2325.5,2.62783952]
[1770107956486,4.86342276,2326.4,2325.5,2.62783952]
[1770107957087,4.86804416,2326.4,2325.5,2.62783952]
[1770107959494,1.2776439,2326.3,2325.5,0.21518]
[1770107959791,4.51204085,2326.2,2325.5,0.21518]
[1770107960187,1.28197286,2326.1,2324.5,2.39371077]
[1770107960389,1.06679286,2325.9,2325.0,0.21523]
[1770107960588,1.06679286,2325.7,2325.0,0.21523]
[1770107961092,4.68027734,2325.6,2325.0,0.21523]
[1770107961790,5.75416272,2325.6,2324.5,2.39371077]
[1770107962088,1.07388538,2325.6,2324.5,2.39371077]
[1770107962485,4.91834552,2325.5,2324.5,2.39371077]
[1770107963288,1.01581776,2325.4,2323.9,2.39848353]
[1770107963493,1.01581776,2325.4,2324.1,2.60902077]
[1770107963691,1.01581776,2325.2,2324.1,2.60902077]
[1770107964089,1.01581776,2325.2,2324.3,2.39371077]
[1770107964090,4.87600853,2325.1,2324.3,2.39371077]
[1770107964392,4.87600853,2325.1,2324.7,2.39371077]
[1770107964590,1.01581776,2325.5,2324.7,2.39371077]
[1770107964991,4.64331897,2325.4,2324.7,2.39371077]
[1770107965592,5.67555366,2325.4,2324.6,0.21527]
[1770107965796,4.64331897,2325.4,2324.6,2.60898077]
[1770107965997,1.03223469,2325.6,2324.6,2.60898077]
[1770107966196,1.03223469,2325.5,2324.6,0.21527]
[1770107966496,4.81670113,2325.4,2324.6,0.21527]
[1770107966698,5.84893582,2325.4,2324.6,0.21527]
[1770107967097,1.03223469,2325.4,2324.6,0.21527]
[1770107967498,4.69294097,2325.3,2324.6,0.21527]
[1770107967699,4.69294097,2325.3,2324.6,2.60898077]
[1770107968001,1.03980877,2325.5,2324.6,2.60898077]
[1770107968297,4.69294097,2325.4,2324.6,0.21527]
[1770107969293,4.69294097,2325.4,2324.6,2.60898077]
[1770107969500,4.69294097,2325.4,2324.7,0.21526]
[1770107969799,4.85021111,2325.5,2324.7,0.21526]
[1770107970004,5.86133704,2325.5,2324.7,0.21526]
[1770107970199,6.07292504,2325.8,2324.8,0.21524]
[1770107970398,4.53977088,2325.4,2324.8,2.60895077]
[1770107970702,4.53977088,2325.6,2324.8,2.60895077]
[1770107970903,1.01112593,2325.7,2324.8,2.60895077]
[1770107971301,4.53977088,2325.5,2324.8,2.60895077]
[1770107971704,1.01112593,2325.7,2324.8,2.60895077]
[1770107972006,4.55612529,2325.4,2324.8,2.60895077]
[1770107972205,4.55612529,2325.5,2324.9,2.60895077]
[1770107972405,8.943,2325.7,2324.9,2.60895077]
[1770107972605,4.66481366,2325.4,2324.9,2.60895077]
[1770107973005,8.943,2325.7,2325.1,2.39371077]
[1770107973208,8.943,2325.7,2325.1,2.60893077]
[1770107973400,4.01504253,2325.6,2325.5,2.39371077]
[1770107973705,4.54508341,2325.9,2325.5,2.39371077]
[1770107974105,8.942,2326.1,2325.5,2.39371077]
[1770107974507,4.93129049,2325.9,2325.5,2.39371077]
[1770107974801,9.94883919,2326.1,2325.4,0.21519]
[1770107975210,4.93129049,2326.0,2325.4,0.21519]
[1770107977811,1.02303388,2325.9,2324.9,0.21524]
[1770107978205,4.94558326,2325.8,2325.0,2.39371077]
[1770107978403,8.942,2326.1,2325.2,2.39371077]
[1770107978602,4.73438141,2326.0,2325.2,2.60892077]
[1770107978808,8.942,2326.1,2325.2,2.60892077]
[1770107979209,4.73438141,2326.0,2325.2,2.60892077]
[1770107981011,4.73438141,2326.0,2325.2,2.39371077]
[1770107981512,8.942,2326.1,2325.5,2.39371077]
[1770107982212,8.942,2326.1,2325.7,0.21516]
[1770107982414,0.0046214,2326.4,2326.1,2.39371077]
[1770107982813,3.011,2327.2,2326.4,2.39371077]
[1770107983205,3.011,2327.2,2326.1,2.5374865]
[1770107983206,1.00544345,2327.1,2326.1,4.93119727]
[1770107983507,5.74661361,2327.1,2326.1,2.39371077]
[1770107984009,1.00544345,2327.0,2326.0,0.21513]
[1770107984210,1.00544345,2326.9,2326.0,0.21513]
[1770107984411,5.55368734,2326.9,2326.0,0.21513]
[1770107984710,8.986,2326.8,2326.0,0.21513]
[1770107985210,4.59648282,2326.7,2326.0,0.21513]
[1770107985612,4.59648282,2326.7,2326.0,2.60884077]
[1770107986114,1.01569644,2326.7,2326.0,0.21513]
[1770107986613,4.55583177,2326.6,2326.0,0.21513]
[1770107986911,8.993,2327.0,2326.0,2.60884077]
[1770107986912,10.00869644,2327.0,2326.0,2.60884077]
[1770107987209,4.55583177,2326.9,2326.0,2.60884077]
[1770107988213,4.55583177,2326.9,2326.1,2.60884077]
[1770107989814,8.993,2327.0,2326.4,2.39371077]
[1770107991607,8.993,2327.0,2326.3,2.50862587]
[1770107992020,0.00324233,2327.1,2326.6,2.29351587]
[1770107992709,0.00324233,2327.1,2326.5,0.21509]
[1770107992908,0.00324233,2327.1,2326.5,2.50860587]
[1770108000928,3.01,2327.8,2327.0,2.29351587]
[1770108001124,3.01,2327.8,2326.6,5.57293175]
[1770108001125,1.05395248,2327.7,2326.6,5.57293175]
[1770108001326,1.05395248,2327.7,2326.2,2.5374865]
[1770108001327,1.05468119,2327.3,2326.2,2.29351587]
[1770108001520,1.05468119,2327.2,2326.2,2.29351587]
[1770108001823,1.05468119,2327.1,2326.0,2.29351587]
[1770108002229,1.05468119,2326.9,2326.0,2.29351587]
[1770108002520,4.55267836,2326.8,2326.0,2.29351587]
[1770108002826,1.05468119,2326.7,2325.7,2.29655411]
[1770108003123,5.6423281,2326.6,2325.7,0.00303824]
[1770108003327,5.6423281,2326.6,2325.4,2.50870587]
[1770108003328,1.08964974,2326.4,2325.4,2.50870587]
[1770108003729,5.64549002,2326.3,2325.4,2.50870587]
[1770108003922,4.55584028,2326.3,2325.4,2.50870587]
[1770108004121,8.955,2326.5,2325.4,2.50870587]
[1770108004122,4.55584028,2326.4,2325.4,2.50870587]
[1770108004333,8.955,2326.5,2325.4,2.51263198]
[1770108004631,5.93562705,2326.4,2325.4,2.51263198]
[1770108005932,1.10098296,2326.3,2325.4,2.51263198]
[1770108006229,4.70115866,2326.2,2325.4,0.21911611]
[1770108006626,1.10098296,2326.1,2325.4,0.00392611]
[1770108007023,1.09705685,2325.9,2324.8,0.21525]
[1770108007332,1.0804629,2325.7,2324.8,0.21525]
[1770108007633,6.02042611,2325.6,2324.8,0.21525]
[1770108008036,6.02042611,2325.6,2324.8,0.21967195]
[1770108008230,6.02042611,2325.6,2324.8,0.00442195]
[1770108009832,4.93996321,2325.6,2324.8,2.29793782]
[1770108010133,4.93996321,2325.6,2325.0,2.29351587]
[1770108010430,3.01,2325.7,2325.3,2.29351587]
[1770108010629,8.955,2326.2,2325.3,2.29351587]
[1770108010831,8.955,2326.2,2325.3,2.50871587]
[1770108011030,8.955,2326.2,2325.5,2.29351587]
[1770108012028,4.51235625,2326.1,2325.4,0.21519]
[1770108012332,4.51235625,2326.1,2325.4,2.50870587]
[1770108013932,3.01,2326.6,2325.6,2.29351587]
[1770108014333,4.95141143,2326.5,2325.6,2.29351587]
[1770108015129,4.95141143,2326.5,2325.7,0.21517]
[1770108015337,4.95141143,2326.5,2325.8,2.29351587]
[1770108017140,2.46895897,2326.5,2325.7,0.21517]
[1770108017536,7.38342757,2326.4,2325.7,0.21517]
[1770108018038,2.46895897,2326.7,2325.7,2.50868587]
[1770108018241,4.4838156,2326.3,2325.7,2.50868587]
[1770108018442,2.46895897,2326.5,2325.7,0.21517]
[1770108018638,4.70580798,2326.4,2325.7,0.21517]
[1770108018837,2.46895897,2326.4,2325.7,0.21517]
[1770108019041,8.95,2326.9,2326.0,2.29351587]
[1770108019239,8.95,2326.9,2326.2,2.50863587]
[1770108019835,7.10448801,2326.8,2326.2,0.21512]
[1770108020343,4.63552904,2326.8,2326.2,0.21512]
[1770108023244,4.63552904,2326.8,2326.2,2.72591023]
[1770108023543,6.99310708,2326.8,2326.2,0.21512]
[1770108023745,2.35757804,2326.8,2326.2,0.21512]
[1770108023941,4.8682915,2326.7,2326.2,0.21512]
[1770108025142,7.22586954,2326.7,2326.2,0.21512]
[1770108025544,2.35757804,2326.7,2326.2,0.21512]
[1770108025741,2.35757804,2326.7,2325.7,5.04827673]
[1770108025947,2.35757804,2326.5,2325.7,2.51079023]
[1770108026342,6.86932018,2326.4,2325.8,0.21516]
[1770108026546,2.35757804,2326.3,2325.8,0.21516]
[1770108027039,4.67508988,2326.2,2325.8,0.21516]
[1770108027245,7.03266792,2326.2,2325.8,0.21516]
[1770108027447,4.67508988,2326.2,2325.5,2.51079023]
[1770108028240,4.67508988,2326.2,2325.8,0.21516]
[1770108028650,4.67508988,2326.2,2325.8,2.72595023]
[1770108028947,8.945,2326.6,2325.8,2.72595023]
[1770108029446,4.64997589,2326.4,2325.8,2.72595023]
[1770108029647,4.64997589,2326.5,2325.8,2.72595023]
[1770108029846,8.947,2326.6,2325.8,2.72595023]
[1770108031148,11.30457804,2326.6,2325.8,2.72595023]
[1770108031349,4.87785329,2326.5,2325.8,2.72595023]
[1770108032149,2.35757804,2326.4,2325.8,0.21516]
[1770108032549,2.35757804,2326.2,2325.8,0.21516]
[1770108032752,2.35757804,2326.2,2325.5,2.51079023]
[1770108032954,2.35757804,2326.2,2325.8,0.21516]
[1770108033244,2.35757804,2326.2,2325.5,2.51079023]
[1770108033844,2.35757804,2326.5,2325.5,2.51079023]
[1770108034149,2.35757804,2326.4,2325.8,0.21516]
[1770108034448,4.93611874,2326.3,2325.8,0.21516]
[1770108034648,7.29369678,2326.3,2325.8,0.21516]
[1770108034844,4.93611874,2326.3,2325.8,2.72595023]
[1770108035148,11.30057804,2326.7,2325.8,2.72595023]
[1770108035344,11.30057804,2326.7,2325.9,2.72594023]
[1770108035649,11.30057804,2326.7,2326.0,2.51079023]
[1770108035650,13.79494971,2326.7,2326.0,2.51079023]
[1770108037243,13.79494971,2326.7,2326.0,2.72593023]
[1770108037549,8.945,2326.7,2326.0,2.72593023]
[1770108037948,11.30257804,2326.7,2326.0,2.72593023]
[1770108038143,4.72391242,2326.6,2326.0,0.21514]
[1770108039650,7.08149046,2326.6,2326.0,0.21514]
[1770108042454,4.72391242,2326.6,2326.0,2.72593023]
[1770108043654,2.35757804,2326.5,2326.0,0.21514]
[1770108045655,8.945,2326.7,2326.0,2.72593023]
[1770108046151,4.54971442,2326.6,2326.0,2.72593023]
[1770108046355,6.90729246,2326.6,2326.0,0.21514]
[1770108046557,2.35757804,2326.5,2325.8,2.5621502]
[1770108046757,2.35757804,2326.5,2325.7,3.83833253]
[1770108046758,1.03466888,2326.3,2325.6,0.21517]
[1770108047154,5.6796168,2326.2,2325.6,0.21517]
[1770108047356,10.00868868,2326.1,2325.6,0.21517]
[1770108047650,4.50035863,2326.0,2325.6,0.21517]
[1770108047957,5.52604731,2326.0,2325.6,0.21517]
[1770108048558,4.50035863,2326.0,2325.6,0.21517]
[1770108049460,5.50878264,2326.0,2325.6,0.21517]
[1770108049660,4.50035863,2326.0,2325.6,0.21517]
[1770108050464,1.00441215,2325.9,2325.0,7.80113722]
[1770108050658,1.00441215,2325.9,2325.1,2.65972018]
[1770108050859,8.983,2326.1,2325.1,2.65972018]
[1770108051061,1.00441215,2326.0,2325.1,2.65972018]
[1770108051358,5.57277032,2326.0,2325.1,2.65972018]
[1770108051864,4.10944817,2326.0,2325.7,2.51287386]
[1770108052064,9.001,2326.4,2325.7,2.51287386]
[1770108052462,13.59797979,2326.4,2325.7,2.51287386]
[1770108053566,4.14439979,2326.4,2325.7,2.51287386]
[1770108053760,9.007,2326.7,2325.9,2.51287386]
[1770108054163,4.52305532,2326.6,2325.9,2.51287386]
[1770108055063,9.007,2326.7,2326.2,2.51287386]
[1770108055260,9.007,2326.7,2326.2,2.72799386]
[1770108057863,9.007,2326.7,2325.7,4.17406923]
[1770108057864,0.96733781,2326.6,2325.7,4.17406923]
[1770108058064,2.5667403,2326.2,2325.1,2.76076467]
[1770108058266,7.323,2326.1,2325.1,2.76076467]
[1770108058462,12.0752501,2326.1,2325.1,2.76076467]
[1770108059569,14.6667159,2326.1,2325.1,2.76076467]
[1770108060570,0.0247255,2325.9,2325.1,0.21522]
[1770108060970,4.68908257,2325.8,2325.1,2.74840192]
[1770108061568,4.68908257,2325.9,2325.1,2.74840192]
[1770108061771,0.01791742,2325.9,2325.1,0.21522]
[1770108062066,0.01791742,2325.5,2324.8,0.00442195]
[1770108062371,13.63902796,2325.4,2324.8,0.00442195]
[1770108065078,13.63902796,2325.4,2324.8,2.5295275]
[1770108065279,9.02,2325.4,2324.8,2.5295275]
[1770108065574,0.04685463,2326.7,2325.7,2.52211736]
[1770108065773,9.07985463,2326.7,2325.7,2.52211736]
[1770108066077,5.03460525,2326.6,2325.7,2.52211736]
[1770108066473,5.03865021,2326.6,2325.7,2.52211736]
[1770108066876,0.04685463,2326.5,2325.6,0.21517]
[1770108067279,4.68522918,2326.4,2325.6,2.73847451]
[1770108068374,4.93695568,2326.5,2325.6,2.73847451]
[1770108068578,0.00404496,2326.6,2325.6,2.73847451]
[1770108068882,4.4856013,2326.5,2325.6,2.73847451]
[1770108071681,4.4856013,2326.5,2324.8,8.95418075]
[1770108071682,4.4856013,2326.5,2325.8,2.51287386]
[1770108071885,0.00404496,2326.6,2326.1,2.51287386]
[1770108072585,9.034,2326.9,2326.1,2.72800386]
[1770108073083,4.97984757,2326.8,2326.1,2.72800386]
[1770108073680,4.9830739,2326.8,2326.1,2.72800386]
[1770108074181,0.11070934,2326.7,2326.1,0.21513]
[1770108074590,4.48816381,2326.6,2325.2,2.54554468]
[1770108074791,4.48816381,2326.6,2325.5,2.54554468]
[1770108075090,4.7456181,2326.7,2325.5,2.54554468]
[1770108075385,2.57627496,2326.8,2325.5,2.54554468]
[1770108075688,4.87726082,2326.7,2325.5,2.54554468]
[1770108075886,7.45030945,2326.7,2325.5,2.54554468]
[1770108076089,7.45030945,2326.7,2325.5,2.76072468]
[1770108077086,0.00290925,2326.6,2325.5,2.76072468]
[1770108077589,4.58782066,2326.5,2325.5,2.76072468]
[1770108078087,4.59072991,2326.5,2325.5,2.76072468]
[1770108078389,0.00290925,2326.5,2325.5,2.76072468]
[1770108078789,4.92753619,2326.4,2325.5,2.76072468]
[1770108078988,9.06,2326.3,2325.5,2.76072468]
[1770108079288,4.92753619,2326.2,2325.5,2.76072468]
[1770108079687,4.92753619,2326.2,2325.7,2.54554468]
[1770108080287,9.065,2326.7,2325.7,2.76070468]
[1770108080486,9.065,2326.7,2325.9,2.54620239]
[1770108080688,4.60405416,2326.6,2325.9,2.54620239]
[1770108082893,0.00322633,2326.8,2325.9,2.54620239]
[1770108082894,4.80743134,2326.7,2325.9,2.54620239]
[1770108083187,9.07622633,2326.8,2325.9,2.54620239]
[1770108083594,4.80743134,2326.7,2325.9,2.54620239]
[1770108091500,0.01052727,2326.6,2325.4,8.95957313]
[1770108091701,2.5835759,2326.5,2325.4,2.75612875]
[1770108092000,7.34124895,2326.5,2325.4,2.75612875]
[1770108092901,4.75767305,2326.5,2325.6,2.75610875]
[1770108093195,13.85267305,2326.5,2325.6,2.75610875]
[1770108095194,16.42572168,2326.5,2325.6,2.75610875]
[1770108095801,16.43779046,2326.5,2325.6,2.75610875]
[1770108096700,16.42572168,2326.5,2325.6,2.75610875]
[1770108097503,13.85267305,2326.5,2325.6,2.75610875]
[1770108099205,11.70127496,2326.8,2326.0,2.75423076]
[1770108099704,4.82757817,2326.7,2326.0,2.75423076]
[1770108102209,4.38429817,2326.7,2326.4,2.54537133]
[1770108102408,0.00322633,2326.8,2326.4,2.54537133]
[1770108102706,2.57471075,2327.3,2326.4,2.54537133]
[1770108102906,0.00166212,2327.2,2326.4,2.54537133]
[1770108103107,0.00166212,2327.1,2326.3,0.21511]
[1770108103408,0.01861794,2326.9,2326.2,6.38491835]
[1770108103609,0.01861794,2326.7,2325.8,3.83954702]
[1770108103811,0.01861794,2326.6,2325.8,2.53689342]
[1770108104104,4.78109532,2326.6,2325.8,2.75205342]
[1770108105002,4.78109532,2326.6,2326.0,2.53689342]
[1770108105207,9.145,2326.8,2326.0,2.53689342]
[1770108106000,9.145,2326.8,2326.1,2.50496207]
[1770108106205,0.00501067,2326.9,2326.1,2.50496207]
[1770108106707,0.00501067,2326.9,2326.2,2.50496207]
[1770108107510,0.04005566,2326.5,2325.7,2.56779409]
[1770108107707,9.18805566,2326.5,2325.7,5.09396865]
[1770108107907,4.52931986,2326.4,2325.7,5.09396865]
[1770108108108,4.56937552,2326.4,2325.6,2.56779409]
[1770108108608,2.57304863,2326.3,2325.5,2.74135456]
[1770108108803,11.72404863,2326.3,2325.5,2.74135456]
[1770108109008,4.77455123,2326.2,2325.5,2.74135456]
[1770108111510,13.82805308,2326.3,2325.7,2.53181503]
[1770108111710,2.57304863,2326.5,2325.7,2.53181503]
[1770108112207,4.84840615,2326.4,2325.7,2.53181503]
[1770108113510,7.0688797,2326.5,2325.7,2.53181503]
[1770108113707,2.60436332,2326.5,2325.7,2.53181503]
[1770108114107,4.61599342,2326.4,2325.7,2.53181503]
[1770108115709,12.175,2326.7,2326.1,2.53352301]
[1770108116511,4.69819674,2326.6,2326.1,2.53352301]
[1770108119809,4.69819674,2326.6,2326.0,0.21513]
[1770108120012,0.04662516,2326.5,2325.6,5.09106469]
[1770108120507,4.8151595,2326.4,2325.7,2.5232706]
[1770108121812,4.8151595,2326.4,2325.8,2.51570439]
[1770108124614,4.91571516,2326.4,2325.6,2.78296409]
[1770108124813,7.48876379,2326.4,2325.6,0.21517]
[1770108125316,0.10331587,2326.3,2325.6,0.21517]
[1770108125513,2.6763645,2326.3,2325.6,0.21517]
[1770108125717,4.76634906,2326.2,2325.6,0.21517]
[1770108126813,14.00534906,2326.2,2325.3,5.06271933]
[1770108127012,14.00534906,2326.2,2325.4,2.49492524]
[1770108127210,14.00534906,2326.2,2325.6,0.21517]
[1770108128213,14.00534906,2326.2,2325.6,2.72636889]
[1770108129212,2.57304863,2326.5,2325.6,2.72636889]
[1770108129413,11.83404863,2326.6,2325.6,5.29416298]
[1770108129612,4.72089417,2326.4,2325.7,2.51205017]
[1770108129808,4.72089417,2326.5,2325.7,2.51205017]
[1770108130006,11.83404863,2326.6,2325.7,2.51205017]
[1770108130513,4.4845696,2326.5,2325.8,2.51205017]
[1770108130914,7.12668425,2326.5,2325.8,2.51205017]
[1770108131510,7.05761823,2326.5,2325.8,2.51205017]
[1770108131915,7.12857557,2326.5,2325.6,2.72627451]
[1770108132114,0.07095734,2326.4,2325.6,2.72627451]
[1770108132413,4.61505124,2326.3,2325.6,2.72627451]
[1770108133512,4.76561695,2326.4,2325.6,2.72627451]
[1770108133813,2.63932685,2326.5,2325.6,2.72627451]
[1770108134013,4.7035811,2326.4,2325.6,2.72627451]
[1770108134714,4.76985932,2326.4,2325.6,2.72627451]
[1770108134913,0.06627822,2326.3,2325.6,2.72627451]
[1770108135414,4.69177841,2326.2,2325.6,2.72627451]